[Event "*** Titled Tuesday Blitz"]
[Site "Chess.com"]
[Date "2020.05.12"]
[Round "4"]
[White "martabartel"]
[Black "Yashasd1995"]
[Result "0-1"]
[WhiteElo "2293"]
[BlackElo "2582"]
[TimeControl "180+1"]
[EndTime "10:40:10 PDT"]
[Termination "Yashasd1995 won on time"]

1. d4 {[%clk 0:02:56.7]} 1... Nf6 {[%clk 0:02:59.4]} 2. Nf3 {[%clk 0:02:56.7]}
2... e6 {[%clk 0:02:59.6]} 3. Bg5 {[%clk 0:02:55.1]} 3... h6 {[%clk 0:02:57.7]}
4. Bxf6 {[%clk 0:02:52.8]} 4... Qxf6 {[%clk 0:02:58.3]} 5. e4 {[%clk 0:02:52.7]}
5... d6 {[%clk 0:02:58.5]} 6. Be2 {[%clk 0:02:49.3]} 6... Nd7 {[%clk 0:02:56.7]}
7. O-O {[%clk 0:02:49]} 7... b6 {[%clk 0:02:56.9]} 8. c4 {[%clk 0:02:42.7]} 8...
Bb7 {[%clk 0:02:56.8]} 9. Nc3 {[%clk 0:02:42.5]} 9... a6 {[%clk 0:02:50.5]} 10.
Rc1 {[%clk 0:02:40.9]} 10... g5 {[%clk 0:02:49.1]} 11. Qd3 {[%clk 0:02:34.6]}
11... Bg7 {[%clk 0:02:48]} 12. Rfd1 {[%clk 0:02:28.8]} 12... g4 {[%clk
0:02:31.9]} 13. Ne1 {[%clk 0:02:28.3]} 13... h5 {[%clk 0:02:31.6]} 14. Nc2
{[%clk 0:02:19.4]} 14... Rd8 {[%clk 0:02:15.9]} 15. Ne3 {[%clk 0:02:19]} 15...
c5 {[%clk 0:02:15.2]} 16. d5 {[%clk 0:02:08.1]} 16... Ne5 {[%clk 0:02:09.3]} 17.
Qc2 {[%clk 0:02:07.6]} 17... O-O {[%clk 0:02:02.5]} 18. Rf1 {[%clk 0:01:56.3]}
18... Ng6 {[%clk 0:02:02.1]} 19. g3 {[%clk 0:01:51.3]} 19... Qg5 {[%clk
0:02:00.1]} 20. Ng2 {[%clk 0:01:39.5]} 20... Bd4 {[%clk 0:01:56.4]} 21. Kh1
{[%clk 0:01:37.4]} 21... Kg7 {[%clk 0:01:54.7]} 22. f4 {[%clk 0:01:33.1]} 22...
gxf3 {[%clk 0:01:49.8]} 23. Rxf3 {[%clk 0:01:28.4]} 23... b5 {[%clk 0:01:44.5]}
24. Rcf1 {[%clk 0:01:24.8]} 24... bxc4 {[%clk 0:01:33.9]} 25. Bxc4 {[%clk
0:01:24.1]} 25... Ne5 {[%clk 0:01:33.6]} 26. Be2 {[%clk 0:01:12.2]} 26... Nxf3
{[%clk 0:01:32.6]} 27. Bxf3 {[%clk 0:01:11.7]} 27... exd5 {[%clk 0:01:13.9]} 28.
Nxd5 {[%clk 0:01:09.1]} 28... Bxd5 {[%clk 0:01:07.5]} 29. exd5 {[%clk
0:01:09.1]} 29... Rde8 {[%clk 0:01:07.5]} 30. Nh4 {[%clk 0:01:08.5]} 30... Re5
{[%clk 0:01:06.3]} 31. Be4 {[%clk 0:01:03.6]} 31... Kh8 {[%clk 0:00:31.7]} 32.
Bd3 {[%clk 0:00:38.9]} 32... Re3 {[%clk 0:00:29]} 33. Nf5 {[%clk 0:00:35.8]}
33... Ree8 {[%clk 0:00:21.7]} 34. Qg2 {[%clk 0:00:32.6]} 34... Be5 {[%clk
0:00:20.2]} 35. Qf3 {[%clk 0:00:31.4]} 35... Rb8 {[%clk 0:00:16.5]} 36. b3
{[%clk 0:00:30.9]} 36... Rb4 {[%clk 0:00:16.4]} 37. Bc4 {[%clk 0:00:29.7]} 37...
a5 {[%clk 0:00:15.7]} 38. h4 {[%clk 0:00:19.2]} 38... Qg6 {[%clk 0:00:14.5]} 39.
Kh2 {[%clk 0:00:18.4]} 39... a4 {[%clk 0:00:14]} 40. Qg2 {[%clk 0:00:10.6]}
40... axb3 {[%clk 0:00:13.8]} 41. axb3 {[%clk 0:00:10.6]} 41... Rbb8 {[%clk
0:00:14]} 42. Qf3 {[%clk 0:00:09.6]} 42... Rb7 {[%clk 0:00:13.9]} 43. Qg2 {[%clk
0:00:08.8]} 43... Ra7 {[%clk 0:00:14]} 44. Qe2 {[%clk 0:00:07.7]} 44... Rfa8
{[%clk 0:00:13.3]} 45. Kh3 {[%clk 0:00:07.2]} 45... Ra2 {[%clk 0:00:12.7]} 46.
Qf3 {[%clk 0:00:07.4]} 46... Rd2 {[%clk 0:00:09.7]} 47. Ne7 {[%clk 0:00:07]}
47... Qg4+ {[%clk 0:00:08.4]} 48. Qxg4 {[%clk 0:00:06.7]} 48... hxg4+ {[%clk
0:00:09.3]} 49. Kxg4 {[%clk 0:00:07.4]} 49... f6 {[%clk 0:00:08.9]} 50. Rf3
{[%clk 0:00:06.6]} 50... Kg7 {[%clk 0:00:09.1]} 51. Nf5+ {[%clk 0:00:05.5]}
51... Kf7 {[%clk 0:00:09.3]} 52. Nh6+ {[%clk 0:00:05.5]} 52... Kg6 {[%clk
0:00:08.9]} 53. Nf5 {[%clk 0:00:05.1]} 53... Ra1 {[%clk 0:00:08.7]} 54. h5+
{[%clk 0:00:05.2]} 54... Kh7 {[%clk 0:00:08.5]} 55. Ne7 {[%clk 0:00:05]} 55...
Rg1 {[%clk 0:00:06.4]} 56. Ng6 {[%clk 0:00:03.3]} 56... Rdg2 {[%clk 0:00:05.1]}
57. Nxe5 {[%clk 0:00:02.5]} 57... fxe5 {[%clk 0:00:06]} 58. Bd3+ {[%clk
0:00:02.3]} 58... Kg7 {[%clk 0:00:06.9]} 59. Be4 {[%clk 0:00:01.8]} 59... Re2
{[%clk 0:00:06.7]} 60. Bf5 {[%clk 0:00:01.3]} 60... Rd2 {[%clk 0:00:06.7]} 61.
Be6 {[%clk 0:00:01.4]} 61... e4 {[%clk 0:00:04.5]} 62. Rf7+ {[%clk 0:00:01.1]}
62... Kh6 {[%clk 0:00:04.4]} 0-1

[Event "*** Titled Tuesday Blitz"]
[Site "Chess.com"]
[Date "2020.05.12"]
[Round "4"]
[White "L_lorenzo"]
[Black "AustrianFalcon"]
[Result "1-0"]
[WhiteElo "2237"]
[BlackElo "2450"]
[TimeControl "180+1"]
[EndTime "10:40:10 PDT"]
[Termination "L_lorenzo won by checkmate"]

1. d4 {[%clk 0:03:00.4]} 1... Nf6 {[%clk 0:02:55.8]} 2. c4 {[%clk 0:03:00.2]}
2... c5 {[%clk 0:02:52.4]} 3. d5 {[%clk 0:03:00.2]} 3... e6 {[%clk 0:02:48.5]}
4. Nc3 {[%clk 0:02:59.8]} 4... exd5 {[%clk 0:02:47.7]} 5. cxd5 {[%clk
0:02:59.8]} 5... d6 {[%clk 0:02:48]} 6. e4 {[%clk 0:02:59.3]} 6... g6 {[%clk
0:02:47.8]} 7. Bg5 {[%clk 0:02:57.4]} 7... Bg7 {[%clk 0:02:46.3]} 8. Nf3 {[%clk
0:02:57.7]} 8... O-O {[%clk 0:02:43.6]} 9. Be2 {[%clk 0:02:57.5]} 9... h6 {[%clk
0:02:33.8]} 10. Bf4 {[%clk 0:02:54]} 10... Re8 {[%clk 0:02:27.5]} 11. Nd2 {[%clk
0:02:53.4]} 11... a6 {[%clk 0:02:19.1]} 12. a4 {[%clk 0:02:53.2]} 12... Qe7
{[%clk 0:02:18.6]} 13. O-O {[%clk 0:02:51]} 13... g5 {[%clk 0:01:49.1]} 14. Bg3
{[%clk 0:02:47.8]} 14... Nfd7 {[%clk 0:01:47.1]} 15. Nc4 {[%clk 0:02:44.6]}
15... Ne5 {[%clk 0:01:46.4]} 16. Nb6 {[%clk 0:02:32.5]} 16... Ra7 {[%clk
0:01:25.6]} 17. Re1 {[%clk 0:02:20.7]} 17... Nbd7 {[%clk 0:01:24.2]} 18. Nxc8
{[%clk 0:02:19.1]} 18... Rxc8 {[%clk 0:01:25.1]} 19. a5 {[%clk 0:02:16.4]} 19...
Raa8 {[%clk 0:01:11.5]} 20. Qc2 {[%clk 0:01:49.6]} 20... c4 {[%clk 0:01:03.1]}
21. Na4 {[%clk 0:01:44.9]} 21... Rab8 {[%clk 0:00:50.3]} 22. f3 {[%clk
0:01:42.4]} 22... b5 {[%clk 0:00:29]} 23. axb6 {[%clk 0:01:38.7]} 23... Nxb6
{[%clk 0:00:29.1]} 24. Nc3 {[%clk 0:01:31.3]} 24... Qb7 {[%clk 0:00:14.2]} 25.
Bf2 {[%clk 0:01:28.9]} 25... Nbd7 {[%clk 0:00:13.4]} 26. Ra2 {[%clk 0:01:18.8]}
26... Nc5 {[%clk 0:00:08.8]} 27. Rea1 {[%clk 0:01:09]} 27... Nb3 {[%clk
0:00:07.3]} 28. Rd1 {[%clk 0:01:06.9]} 28... a5 {[%clk 0:00:06.8]} 29. g3 {[%clk
0:01:01.1]} 29... Qb4 {[%clk 0:00:06]} 30. f4 {[%clk 0:00:59.4]} 30... gxf4
{[%clk 0:00:05.2]} 31. gxf4 {[%clk 0:00:59.4]} 31... Nd3 {[%clk 0:00:05.5]} 32.
Bxd3 {[%clk 0:00:55.6]} 32... cxd3 {[%clk 0:00:05.6]} 33. Qxd3 {[%clk
0:00:55.7]} 33... Bxc3 {[%clk 0:00:04.8]} 34. bxc3 {[%clk 0:00:55.8]} 34... Rxc3
{[%clk 0:00:05.7]} 35. Qf1 {[%clk 0:00:50.9]} 35... Qxe4 {[%clk 0:00:04.3]} 36.
Qg2+ {[%clk 0:00:47]} 36... Qxg2+ {[%clk 0:00:04.3]} 37. Kxg2 {[%clk 0:00:47.2]}
37... Rbc8 {[%clk 0:00:04.5]} 38. Rb1 {[%clk 0:00:41.9]} 38... Kg7 {[%clk
0:00:02.8]} 39. Ra3 {[%clk 0:00:40.1]} 39... a4 {[%clk 0:00:02.2]} 40. Rxa4
{[%clk 0:00:36.6]} 40... Nd2 {[%clk 0:00:02.5]} 41. Bd4+ {[%clk 0:00:35.9]}
41... Kg6 {[%clk 0:00:02.9]} 42. Bxc3 {[%clk 0:00:35.7]} 42... Nxb1 {[%clk
0:00:03.3]} 43. Bb4 {[%clk 0:00:34.3]} 43... Nc3 {[%clk 0:00:03.5]} 44. Ra6
{[%clk 0:00:31.9]} 44... Kf5 {[%clk 0:00:01.8]} 45. Rxd6 {[%clk 0:00:30.3]}
45... Ne4 {[%clk 0:00:01.3]} 46. Rd7 {[%clk 0:00:29.1]} 46... Rc2+ {[%clk
0:00:01.8]} 47. Kf3 {[%clk 0:00:27.7]} 47... Rf2+ {[%clk 0:00:01.8]} 48. Ke3
{[%clk 0:00:26.3]} 48... Rxh2 {[%clk 0:00:02.7]} 49. Rxf7+ {[%clk 0:00:25.3]}
49... Nf6 {[%clk 0:00:03.6]} 50. Be7 {[%clk 0:00:24.1]} 50... Rh3+ {[%clk
0:00:03.5]} 51. Kd4 {[%clk 0:00:23.9]} 51... Kg6 {[%clk 0:00:03.3]} 52. Rxf6+
{[%clk 0:00:23.9]} 52... Kg7 {[%clk 0:00:04.2]} 53. Re6 {[%clk 0:00:22.5]} 53...
Rh1 {[%clk 0:00:05.1]} 54. f5 {[%clk 0:00:22.2]} 54... Rd1+ {[%clk 0:00:06]} 55.
Ke5 {[%clk 0:00:21.2]} 55... h5 {[%clk 0:00:06.9]} 56. f6+ {[%clk 0:00:21.1]}
56... Kf7 {[%clk 0:00:07.4]} 57. Ra6 {[%clk 0:00:21]} 57... h4 {[%clk
0:00:08.3]} 58. d6 {[%clk 0:00:20.5]} 58... h3 {[%clk 0:00:09.2]} 59. Ra2 {[%clk
0:00:19.7]} 59... Rd2 {[%clk 0:00:09.4]} 60. Rxd2 {[%clk 0:00:18.6]} 60... Kg6
{[%clk 0:00:09.8]} 61. Rh2 {[%clk 0:00:18.9]} 61... Kf7 {[%clk 0:00:09.8]} 62.
Rxh3 {[%clk 0:00:19.3]} 62... Kg6 {[%clk 0:00:10.7]} 63. Rg3+ {[%clk 0:00:18.6]}
63... Kf7 {[%clk 0:00:11.6]} 64. Rg7+ {[%clk 0:00:18.5]} 64... Ke8 {[%clk
0:00:12.5]} 65. f7+ {[%clk 0:00:17.9]} 65... Kd7 {[%clk 0:00:13.4]} 66. f8=Q
{[%clk 0:00:17.3]} 66... Kc6 {[%clk 0:00:14.3]} 67. Qc8+ {[%clk 0:00:17.1]}
67... Kb5 {[%clk 0:00:14.4]} 68. Rg5 {[%clk 0:00:16.5]} 68... Ka5 {[%clk
0:00:15.1]} 69. Ke6+ {[%clk 0:00:16.4]} 69... Kb6 {[%clk 0:00:16]} 70. Qc7+
{[%clk 0:00:16.2]} 70... Ka6 {[%clk 0:00:16.2]} 71. Ra5# {[%clk 0:00:16.2]} 1-0

[Event "*** Titled Tuesday Blitz"]
[Site "Chess.com"]
[Date "2020.05.12"]
[Round "4"]
[White "Manukyan_Artak"]
[Black "grzechu96"]
[Result "1-0"]
[WhiteElo "2428"]
[BlackElo "2593"]
[TimeControl "180+1"]
[EndTime "10:40:11 PDT"]
[Termination "Manukyan_Artak won on time"]

1. e4 {[%clk 0:02:55.1]} 1... e5 {[%clk 0:02:58.1]} 2. Nf3 {[%clk 0:02:54.9]}
2... Nc6 {[%clk 0:02:58.4]} 3. d4 {[%clk 0:02:54.9]} 3... exd4 {[%clk
0:02:58.5]} 4. Nxd4 {[%clk 0:02:55.8]} 4... Nf6 {[%clk 0:02:59.1]} 5. Nxc6
{[%clk 0:02:55.4]} 5... bxc6 {[%clk 0:03:00]} 6. e5 {[%clk 0:02:55.2]} 6... Qe7
{[%clk 0:02:59.3]} 7. Qe2 {[%clk 0:02:55.4]} 7... Nd5 {[%clk 0:02:59.5]} 8. c4
{[%clk 0:02:56]} 8... Nb6 {[%clk 0:02:59.8]} 9. b3 {[%clk 0:02:56]} 9... g6
{[%clk 0:02:36]} 10. g3 {[%clk 0:02:43.3]} 10... Bg7 {[%clk 0:02:35.4]} 11. Bb2
{[%clk 0:02:42.9]} 11... O-O {[%clk 0:02:28.2]} 12. Bg2 {[%clk 0:02:31.5]} 12...
d5 {[%clk 0:02:22.4]} 13. O-O {[%clk 0:02:20.1]} 13... Ba6 {[%clk 0:02:21.7]}
14. Nd2 {[%clk 0:02:09.8]} 14... Rfe8 {[%clk 0:02:17.6]} 15. Rfe1 {[%clk
0:02:09.3]} 15... Rad8 {[%clk 0:02:13.6]} 16. Rac1 {[%clk 0:02:04.6]} 16... Qe6
{[%clk 0:01:35.3]} 17. f4 {[%clk 0:01:26]} 17... Bf8 {[%clk 0:01:21.9]} 18. h4
{[%clk 0:01:23.7]} 18... dxc4 {[%clk 0:01:19]} 19. Nxc4 {[%clk 0:01:22.7]} 19...
Nxc4 {[%clk 0:01:14.9]} 20. bxc4 {[%clk 0:01:23.6]} 20... Bb4 {[%clk 0:01:15.2]}
21. Red1 {[%clk 0:01:14]} 21... Bxc4 {[%clk 0:01:05.4]} 22. Qf2 {[%clk
0:01:02.5]} 22... Rxd1+ {[%clk 0:00:53.2]} 23. Rxd1 {[%clk 0:01:01.8]} 23...
Bxa2 {[%clk 0:00:34.8]} 24. Qxa7 {[%clk 0:01:00]} 24... Qb3 {[%clk 0:00:34.7]}
25. Ra1 {[%clk 0:00:47.1]} 25... Qxb2 {[%clk 0:00:19.1]} 26. Qxa2 {[%clk
0:00:47]} 26... Qd4+ {[%clk 0:00:17]} 27. Kh2 {[%clk 0:00:46.8]} 27... c5 {[%clk
0:00:12.5]} 28. Bd5 {[%clk 0:00:42.9]} 28... Rf8 {[%clk 0:00:11.8]} 29. Rg1
{[%clk 0:00:40.6]} 29... Bd2 {[%clk 0:00:11.2]} 30. Rg2 {[%clk 0:00:39]} 30...
Be3 {[%clk 0:00:10.4]} 31. e6 {[%clk 0:00:37.6]} 31... fxe6 {[%clk 0:00:10.2]}
32. Bxe6+ {[%clk 0:00:38.2]} 32... Kg7 {[%clk 0:00:10.7]} 33. Qd5 {[%clk
0:00:33.9]} 33... Qxd5 {[%clk 0:00:10.3]} 34. Bxd5 {[%clk 0:00:34.2]} 34... Rd8
{[%clk 0:00:10.9]} 35. Be6 {[%clk 0:00:33.2]} 35... Rd6 {[%clk 0:00:10.9]} 36.
f5 {[%clk 0:00:32.6]} 36... gxf5 {[%clk 0:00:10.4]} 37. Bxf5 {[%clk 0:00:33.5]}
37... c4 {[%clk 0:00:10.7]} 38. Rc2 {[%clk 0:00:33.2]} 38... Rc6 {[%clk
0:00:11.1]} 39. g4 {[%clk 0:00:32.4]} 39... c3 {[%clk 0:00:11.1]} 40. Kg3 {[%clk
0:00:32]} 40... Bd2 {[%clk 0:00:11.1]} 41. Kf3 {[%clk 0:00:30.6]} 41... Rc4
{[%clk 0:00:11.5]} 42. Be4 {[%clk 0:00:29.6]} 42... Kf6 {[%clk 0:00:11.1]} 43.
Bxh7 {[%clk 0:00:27.5]} 43... Ke5 {[%clk 0:00:09.3]} 44. h5 {[%clk 0:00:26.2]}
44... Kf6 {[%clk 0:00:08.7]} 45. Be4 {[%clk 0:00:24.6]} 45... Kg5 {[%clk
0:00:08.5]} 46. Bf5 {[%clk 0:00:24.5]} 46... Rf4+ {[%clk 0:00:07.4]} 47. Ke2
{[%clk 0:00:24.7]} 47... Rd4 {[%clk 0:00:07]} 48. Ra2 {[%clk 0:00:22.3]} 48...
Rd5 {[%clk 0:00:05.6]} 49. Ra4 {[%clk 0:00:21.6]} 49... Bf4 {[%clk 0:00:03.6]}
50. Rc4 {[%clk 0:00:20.8]} 50... Bd2 {[%clk 0:00:02]} 51. Rxc7 {[%clk
0:00:19.7]} 51... Re5+ {[%clk 0:00:02.5]} 52. Kd3 {[%clk 0:00:19.6]} 52... Re3+
{[%clk 0:00:02.8]} 53. Kc2 {[%clk 0:00:20.1]} 53... Re1 {[%clk 0:00:02.9]} 54.
Rc5 {[%clk 0:00:19.8]} 54... Kf6 {[%clk 0:00:01.8]} 55. Rc6+ {[%clk 0:00:18.5]}
55... Kg5 {[%clk 0:00:01.8]} 56. h6 {[%clk 0:00:18.7]} 56... Rh1 {[%clk
0:00:01.5]} 57. h7 {[%clk 0:00:18.5]} 57... Bf4 {[%clk 0:00:01.6]} 58. Kxc3
{[%clk 0:00:17.9]} 58... Be5+ {[%clk 0:00:01.2]} 59. Kd3 {[%clk 0:00:17.5]}
59... Kf4 {[%clk 0:00:01.1]} 60. Rc8 {[%clk 0:00:14.2]} 60... Rh3+ {[%clk
0:00:01.1]} 61. Ke2 {[%clk 0:00:14.1]} 61... Rh2+ {[%clk 0:00:01.3]} 62. Kd1
{[%clk 0:00:13.5]} 62... Ke3 {[%clk 0:00:01.4]} 63. Re8 {[%clk 0:00:10.2]} 63...
Kd4 {[%clk 0:00:01.1]} 64. Ke1 {[%clk 0:00:07.4]} 1-0

[Event "*** Titled Tuesday Blitz"]
[Site "Chess.com"]
[Date "2020.05.12"]
[Round "4"]
[White "Papa12341234"]
[Black "Kaua18"]
[Result "1-0"]
[WhiteElo "2524"]
[BlackElo "2324"]
[TimeControl "180+1"]
[EndTime "10:40:16 PDT"]
[Termination "Papa12341234 won on time"]

1. e4 {[%clk 0:03:00.9]} 1... c5 {[%clk 0:02:59.8]} 2. Nc3 {[%clk 0:03:01]} 2...
Nc6 {[%clk 0:02:59.9]} 3. Nf3 {[%clk 0:03:01.6]} 3... e5 {[%clk 0:02:59.3]} 4.
Bc4 {[%clk 0:03:01.2]} 4... d6 {[%clk 0:02:59.3]} 5. d3 {[%clk 0:03:01.8]} 5...
Be7 {[%clk 0:02:59.4]} 6. Nd2 {[%clk 0:03:02.3]} 6... Nf6 {[%clk 0:02:58.1]} 7.
Nf1 {[%clk 0:03:02.7]} 7... Nd7 {[%clk 0:02:58.2]} 8. Ne3 {[%clk 0:03:02.8]}
8... Nb6 {[%clk 0:02:58.6]} 9. Bb3 {[%clk 0:03:02.1]} 9... Bg5 {[%clk
0:02:52.4]} 10. a4 {[%clk 0:03:02]} 10... Be6 {[%clk 0:02:39.8]} 11. Bxe6 {[%clk
0:03:01]} 11... fxe6 {[%clk 0:02:39.7]} 12. Qg4 {[%clk 0:02:59.5]} 12... Nd4
{[%clk 0:02:31.4]} 13. a5 {[%clk 0:02:54]} 13... Bxe3 {[%clk 0:01:58.4]} 14.
Bxe3 {[%clk 0:02:54.7]} 14... Nxc2+ {[%clk 0:01:58.3]} 15. Ke2 {[%clk
0:02:55.1]} 15... Nxa1 {[%clk 0:01:50]} 16. Qxg7 {[%clk 0:02:41.2]} 16... Rf8
{[%clk 0:01:25.5]} 17. axb6 {[%clk 0:02:41]} 17... axb6 {[%clk 0:00:46.2]} 18.
Nb5 {[%clk 0:02:31]} 18... Qe7 {[%clk 0:00:28]} 19. Nc7+ {[%clk 0:02:21.5]}
19... Kd7 {[%clk 0:00:28.2]} 20. Qxe7+ {[%clk 0:02:19.8]} 20... Kxe7 {[%clk
0:00:29.1]} 21. Nxa8 {[%clk 0:02:18]} 21... Rxa8 {[%clk 0:00:30]} 22. h4 {[%clk
0:02:04.2]} 22... Nb3 {[%clk 0:00:30]} 23. Rh3 {[%clk 0:02:00.2]} 23... Rg8
{[%clk 0:00:27.5]} 24. Bg5+ {[%clk 0:01:58]} 24... Ke8 {[%clk 0:00:24]} 25. g3
{[%clk 0:01:58]} 25... Nd4+ {[%clk 0:00:21.9]} 26. Kd1 {[%clk 0:01:53.5]} 26...
Rf8 {[%clk 0:00:21.7]} 27. Be3 {[%clk 0:01:53.6]} 27... Kd7 {[%clk 0:00:18.9]}
28. h5 {[%clk 0:01:53.1]} 28... b5 {[%clk 0:00:16.6]} 29. Rh4 {[%clk 0:01:53.1]}
29... Rg8 {[%clk 0:00:15.9]} 30. Rh1 {[%clk 0:01:36]} 30... b4 {[%clk
0:00:15.7]} 31. Kd2 {[%clk 0:01:36.3]} 31... b5 {[%clk 0:00:15.6]} 32. Bxd4
{[%clk 0:01:35.7]} 32... exd4 {[%clk 0:00:14.9]} 33. Ra1 {[%clk 0:01:36.6]}
33... Rc8 {[%clk 0:00:10.6]} 34. Ra7+ {[%clk 0:01:34.8]} 34... Rc7 {[%clk
0:00:10.8]} 35. Ra8 {[%clk 0:01:35.2]} 35... Rb7 {[%clk 0:00:10.5]} 36. Rh8
{[%clk 0:01:34.8]} 36... Kc6 {[%clk 0:00:10.7]} 37. h6 {[%clk 0:01:35.3]} 37...
Rf7 {[%clk 0:00:10.8]} 38. f4 {[%clk 0:01:34.9]} 38... d5 {[%clk 0:00:10.4]} 39.
Rg8 {[%clk 0:01:33.2]} 39... Kd7 {[%clk 0:00:09.4]} 40. Rg7 {[%clk 0:01:32.2]}
40... Ke7 {[%clk 0:00:09.9]} 41. exd5 {[%clk 0:01:28.4]} 41... exd5 {[%clk
0:00:08.6]} 42. Rg5 {[%clk 0:01:28.4]} 42... Ke6 {[%clk 0:00:08.2]} 43. Re5+
{[%clk 0:01:27.7]} 43... Kd6 {[%clk 0:00:08.2]} 44. Re8 {[%clk 0:01:24.1]} 44...
Rf6 {[%clk 0:00:08.3]} 45. Ra8 {[%clk 0:01:22.6]} 45... Ke6 {[%clk 0:00:06.3]}
46. Ra7 {[%clk 0:01:17.1]} 46... Rg6 {[%clk 0:00:03.6]} 47. Rxh7 {[%clk
0:01:05.2]} 47... Rxg3 {[%clk 0:00:03.7]} 48. Rh8 {[%clk 0:01:03.6]} 48... Rg2+
{[%clk 0:00:04.6]} 49. Kc1 {[%clk 0:01:03.3]} 49... Rh2 {[%clk 0:00:04.9]} 50.
h7 {[%clk 0:01:02.8]} 50... Kf7 {[%clk 0:00:04.6]} 51. Rd8 {[%clk 0:01:02]}
51... Rxh7 {[%clk 0:00:03.5]} 52. Rd7+ {[%clk 0:01:02.2]} 52... Kg6 {[%clk
0:00:03.1]} 53. Rxd5 {[%clk 0:01:02.7]} 53... Rh5 {[%clk 0:00:03.3]} 54. Rd6+
{[%clk 0:00:59.5]} 54... Kf5 {[%clk 0:00:03.3]} 55. Rd5+ {[%clk 0:01:00.1]}
55... Kg4 {[%clk 0:00:03.3]} 56. Rd6 {[%clk 0:00:51.9]} 56... Kxf4 {[%clk
0:00:03.6]} 57. Rb6 {[%clk 0:00:51.5]} 57... Ke3 {[%clk 0:00:03.4]} 58. Kc2
{[%clk 0:00:51.3]} 58... Rh2+ {[%clk 0:00:03.1]} 59. Kb3 {[%clk 0:00:50.7]}
59... Kxd3 {[%clk 0:00:03.2]} 60. Rxb5 {[%clk 0:00:51.1]} 60... c4+ {[%clk
0:00:03.5]} 61. Ka2 {[%clk 0:00:50.3]} 61... b3+ {[%clk 0:00:03.3]} 62. Ka3
{[%clk 0:00:49.7]} 62... Rh1 {[%clk 0:00:03]} 63. Rg5 {[%clk 0:00:47.4]} 63...
Ra1+ {[%clk 0:00:01.8]} 64. Kb4 {[%clk 0:00:47.7]} 64... Rc1 {[%clk 0:00:02.2]}
65. Rg2 {[%clk 0:00:46.7]} 65... Ke4 {[%clk 0:00:02.1]} 66. Re2+ {[%clk
0:00:46.3]} 66... Kd3 {[%clk 0:00:02]} 67. Rg2 {[%clk 0:00:46.2]} 67... Rc2
{[%clk 0:00:02.9]} 68. Rg3+ {[%clk 0:00:46.3]} 68... Ke4 {[%clk 0:00:03.3]} 69.
Rg4+ {[%clk 0:00:44.7]} 69... Ke5 {[%clk 0:00:03.8]} 70. Rg5+ {[%clk 0:00:43]}
70... Kf4 {[%clk 0:00:03.9]} 71. Rg8 {[%clk 0:00:40.6]} 71... Rxb2 {[%clk
0:00:03.7]} 72. Kxc4 {[%clk 0:00:41]} 72... Ke3 {[%clk 0:00:02.1]} 73. Re8+
{[%clk 0:00:40.7]} 73... Kd2 {[%clk 0:00:02.6]} 74. Kxd4 {[%clk 0:00:41.1]}
74... Kc1 {[%clk 0:00:03.5]} 75. Re1+ {[%clk 0:00:35.2]} 75... Kc2 {[%clk
0:00:03.5]} 76. Rh1 {[%clk 0:00:35.6]} 76... Rb1 {[%clk 0:00:03.3]} 77. Rh2+
{[%clk 0:00:36]} 77... Kd1 {[%clk 0:00:02.9]} 78. Kc3 {[%clk 0:00:34.5]} 78...
Rc1+ {[%clk 0:00:03.2]} 79. Kd3 {[%clk 0:00:35]} 1-0